[Event "44th Chess Olympiad Open 2022"]
[Site "Chennai"]
[Date "2022.08.03"]
[Round "6.64"]
[White "Badene, Habtamu Bayu"]
[Black "Rafael Chirinza"]
[Result "1-0"]
[WhiteElo "2011"]
[BlackElo "1725"]
[Annotator "NA RC"]
[PlyCount "80"]
[EventDate "2022.??.??"]
[TimeControl "60"]

1. e4 {[%emt 0:00:02]} c6 {[%emt 0:00:08]} 2. d4 {[%emt 0:00:04]} d5 {[%emt 0:
00:00]} 3. Nc3 {[%emt 0:00:53]} dxe4 {[%emt 0:00:14]} 4. Nxe4 {[%emt 0:00:05]}
Bf5 {[%emt 0:00:36]} 5. Ng3 {[%emt 0:01:28]} Bg6 {[%emt 0:00:00]} 6. Nf3 {
[%emt 0:00:20]} Nd7 {[%emt 0:00:02]} 7. Bd3 {[%emt 0:00:15]} e6 {[%emt 0:00:57]
} 8. O-O {[%emt 0:00:19]} Ngf6 {[%emt 0:00:45]} 9. Re1 {[%emt 0:00:27]} Bd6 {
[%emt 0:01:35]} 10. Nf5 {[%emt 0:11:06]} Bxf5 {[%emt 0:08:34]} 11. Bxf5 {
[%emt 0:00:24]} Qa5 {[%emt 0:01:49]} 12. Bd3 {[%emt 0:06:12]} h6 {[%emt 0:00:
00]} 13. Bd2 {[%emt 0:03:35]} Qc7 {[%emt 0:00:55]} 14. h3 {[%emt 0:00:42]}
O-O-O {[%emt 0:02:09]} 15. c4 {[%emt 0:00:51]} g5 {[%emt 0:01:06]} 16. c5 {
[%emt 0:03:12]} Bf8 {[%emt 0:02:26]} 17. Qe2 {[%emt 0:03:01]} Nd5 {[%emt 0:00:
00]} 18. b4 {[%emt 0:01:26]} Bg7 {[%emt 0:03:19]} 19. a4 {[%emt 0:02:32]} Rde8
{[%emt 0:03:07]} 20. b5 {[%emt 0:02:26]} Nb8 {[%emt 0:03:19]} 21. a5 {[%emt 0:
00:00]} cxb5 {[%emt 0:03:42]} 22. Bxb5 {[%emt 0:00:28]} Re7 {[%emt 0:05:51]}
23. a6 {[%emt 0:02:36]} bxa6 {[%emt 0:03:10]} 24. Bxa6+ {[%emt 0:01:24]} Nxa6 {
[%emt 0:02:56]} 25. Qxa6+ {[%emt 0:00:17]} Qb7 {[%emt 0:01:55]} 26. Qa4 {
[%emt 0:01:36]} Rc7 {[%emt 0:04:31]} 27. Ba5 {[%emt 0:05:05]} Rc6 {[%emt 0:00:
00]} 28. Reb1 {[%emt 0:00:25]} Qa8 {[%emt 0:05:30]} 29. Bb6 {[%emt 0:08:02]} a6
{[%emt 0:11:52]} 30. Qc4 {[%emt 0:10:46]} Kb7 {[%emt 0:04:40]} 31. Nd2 {
[%emt 0:06:28]} Nxb6 {[%emt 0:02:42]} 32. d5 {[%emt 0:00:34]} exd5 {[%emt 0:00:
00]} 33. Qxd5 {[%emt 0:00:38]} Rd8 {[%emt 0:04:04]} 34. Qxf7+ {[%emt 0:04:28]}
Kc8 {[%emt 0:04:07]} 35. Qxg7 {[%emt 0:03:23]} Rxd2 {[%emt 0:02:34]} 36. cxb6 {
[%emt 0:01:24]} Qb7 {[%emt 0:00:29]} 37. Rxa6 {[%emt 0:01:46]} Qxa6 {[%emt 0:
00:00]} 38. b7+ {[%emt 0:00:11]} Kd8 {[%emt 0:02:45]} 39. b8=Q+ {[%emt 0:00:18]
} Qc8 {[%emt 0:01:05]} 40. Qf8+ {[%emt 0:00:35]} Kd7 {[%emt 0:00:35]} 1-0

[Event "44th Chess Olympiad Open 2022"]
[Site "Chennai"]
[Date "2022.08.03"]
[Round "6.64"]
[White "Jamal, Hamid Harmon Gulamo"]
[Black "Gole, Habtamu Ashenafi"]
[Result "1-0"]
[WhiteElo "1617"]
[BlackElo "2044"]
[Annotator "NA RC"]
[PlyCount "141"]
[EventDate "2022.??.??"]
[TimeControl "60"]

1. e4 {[%emt 0:00:02]} c5 {[%emt 0:00:05]} 2. Nf3 {[%emt 0:00:06]} d6 {[%emt 0:
00:00]} 3. d4 {[%emt 0:00:08]} cxd4 {[%emt 0:00:03]} 4. Nxd4 {[%emt 0:00:07]}
Nf6 {[%emt 0:00:04]} 5. Nc3 {[%emt 0:00:13]} a6 {[%emt 0:00:08]} 6. h3 {
[%emt 0:00:12]} g6 {[%emt 0:00:13]} 7. g4 {[%emt 0:05:29]} Bg7 {[%emt 0:00:27]}
8. Bg2 {[%emt 0:01:22]} O-O {[%emt 0:00:15]} 9. Be3 {[%emt 0:01:35]} Nc6 {
[%emt 0:00:16]} 10. Qd2 {[%emt 0:09:02]} Ne5 {[%emt 0:03:15]} 11. b3 {[%emt 0:
00:00]} Bd7 {[%emt 0:02:27]} 12. g5 {[%emt 0:03:36]} Nh5 {[%emt 0:03:24]} 13.
f4 {[%emt 0:02:05]} Nc6 {[%emt 0:00:12]} 14. Nde2 {[%emt 0:01:04]} Rc8 {
[%emt 0:04:12]} 15. Bf3 {[%emt 0:03:47]} Qa5 {[%emt 0:05:18]} 16. Bxh5 {
[%emt 0:04:42]} gxh5 {[%emt 0:00:27]} 17. Rd1 {[%emt 0:00:37]} e6 {[%emt 0:00:
00]} 18. Kf2 {[%emt 0:03:16]} d5 {[%emt 0:06:28]} 19. exd5 {[%emt 0:06:29]} Ne7
{[%emt 0:03:11]} 20. Bd4 {[%emt 0:13:35]} Bxd4+ {[%emt 0:00:17]} 21. Qxd4 {
[%emt 0:00:16]} Nf5 {[%emt 0:00:19]} 22. Qe5 {[%emt 0:04:22]} Rxc3 {[%emt 0:00:
00]} 23. Qxc3 {[%emt 0:08:43]} Qb6+ {[%emt 0:01:19]} 24. Ke1 {[%emt 0:01:13]}
Rc8 {[%emt 0:00:16]} 25. Qd3 {[%emt 0:01:39]} Qa5+ {[%emt 0:06:01]} 26. c3 {
[%emt 0:05:06]} Bb5 {[%emt 0:00:38]} 27. Qd2 {[%emt 0:21:23]} Bxe2 {[%emt 0:00:
00]} 28. Kxe2 {[%emt 0:00:50]} Rxc3 {[%emt 0:00:24]} 29. dxe6 {[%emt 0:01:39]}
Qb5+ {[%emt 0:00:23]} 30. Ke1 {[%emt 0:00:41]} Re3+ {[%emt 0:03:23]} 31. Kf2 {
[%emt 0:00:05]} Rxe6 {[%emt 0:04:53]} 32. Rhe1 {[%emt 0:01:16]} Qc5+ {[%emt 0:
00:00]} 33. Kg2 {[%emt 0:00:46]} Qc6+ {[%emt 0:05:50]} 34. Kh2 {[%emt 0:00:33]}
Qf3 {[%emt 0:11:55]} 35. Rxe6 {[%emt 0:00:16]} Qg3+ {[%emt 0:00:39]} 36. Kh1 {
[%emt 0:00:06]} Qxh3+ {[%emt 0:04:16]} 37. Kg1 {[%emt 0:00:05]} Qg4+ {[%emt 0:
00:00]} 38. Kf2 {[%emt 0:00:32]} Qg3+ {[%emt 0:01:29]} 39. Kf1 {[%emt 0:00:28]}
Qf3+ {[%emt 0:01:12]} 40. Ke1 {[%emt 0:00:30]} Qh1+ {[%emt 0:01:44]} 41. Ke2 {
[%emt 0:30:13]} Qg2+ {[%emt 0:30:48]} 42. Kd3 {[%emt 0:00:18]} Qd5+ {[%emt 0:
00:00]} 43. Kc2 {[%emt 0:02:11]} Qxe6 {[%emt 0:03:46]} 44. Re1 {[%emt 0:00:00]}
Qc8+ {[%emt 0:00:00]} 45. Qc3 {[%emt 0:00:00]} Qxc3+ {[%emt 0:00:00]} 46. Kxc3
{[%emt 0:00:00]} h4 {[%emt 0:00:00]} 47. Kd3 {[%emt 0:00:00]} Kg7 {[%emt 0:00:
00]} 48. Ke4 {[%emt 0:00:00]} Ng3+ {[%emt 0:00:00]} 49. Kf3 {[%emt 0:00:00]}
Kg6 {[%emt 0:00:00]} 50. Kg4 {[%emt 0:00:00]} Nf5 {[%emt 0:00:00]} 51. Re5 {
[%emt 0:00:00]} h6 {[%emt 0:00:00]} 52. gxh6 {[%emt 0:00:00]} Nxh6+ {[%emt 0:
00:00]} 53. Kxh4 {[%emt 0:00:00]} f6 {[%emt 0:00:00]} 54. Rc5 {[%emt 0:00:00]}
Nf5+ {[%emt 0:00:00]} 55. Kg4 {[%emt 0:00:00]} Ne3+ {[%emt 0:00:00]} 56. Kf3 {
[%emt 0:00:00]} Nf5 {[%emt 0:00:00]} 57. Rc7 {[%emt 0:00:00]} b6 {[%emt 0:00:
00]} 58. Rc8 {[%emt 0:00:00]} a5 {[%emt 0:00:00]} 59. Rg8+ {[%emt 0:00:00]} Kf7
{[%emt 0:00:00]} 60. Rb8 {[%emt 0:00:00]} b5 {[%emt 0:00:00]} 61. Ke4 {[%emt 0:
00:00]} Ke6 {[%emt 0:00:00]} 62. Re8+ {[%emt 0:00:00]} Ne7 {[%emt 0:00:00]} 63.
f5+ {[%emt 0:00:00]} Kd6 {[%emt 0:00:00]} 64. Rxe7 {[%emt 0:00:00]} Kxe7 {
[%emt 0:00:00]} 65. Kd5 {[%emt 0:00:00]} b4 {[%emt 0:00:00]} 66. Kc6 {[%emt 0:
00:00]} Ke8 {[%emt 0:00:00]} 67. Kd6 {[%emt 0:00:00]} Kf7 {[%emt 0:00:00]} 68.
Kd7 {[%emt 0:00:00]} Kf8 {[%emt 0:01:08]} 69. Ke6 {[%emt 0:00:00]} Kg7 {
[%emt 0:00:06]} 70. Ke7 {[%emt 0:00:00]} Kh6 {[%emt 0:00:15]} 71. Kxf6 {
[%emt 0:00:00]} 1-0

[Event "44th Chess Olympiad Open 2022"]
[Site "Chennai"]
[Date "2022.08.03"]
[Round "6.65"]
[White "Fellman, Mike"]
[Black "Kwong, Wing Ki"]
[Result "1-0"]
[WhiteElo "2107"]
[BlackElo "1824"]
[Annotator "NA RC"]
[PlyCount "123"]
[EventDate "2022.??.??"]
[TimeControl "60"]

1. d4 {[%emt 0:00:01]} Nf6 {[%emt 0:00:10]} 2. c4 {[%emt 0:00:06]} g6 {[%emt 0:
00:00]} 3. f3 {[%emt 0:00:06]} d5 {[%emt 0:00:32]} 4. cxd5 {[%emt 0:00:06]}
Nxd5 {[%emt 0:00:15]} 5. e4 {[%emt 0:00:03]} Nb6 {[%emt 0:00:24]} 6. Nc3 {
[%emt 0:00:13]} Bg7 {[%emt 0:00:55]} 7. Be3 {[%emt 0:00:13]} Nc6 {[%emt 0:00:
00]} 8. d5 {[%emt 0:00:09]} Ne5 {[%emt 0:02:56]} 9. f4 {[%emt 0:00:07]} Ng4 {
[%emt 0:02:10]} 10. Bd4 {[%emt 0:00:06]} e5 {[%emt 0:01:08]} 11. Bc5 {[%emt 0:
00:00]} Bd7 {[%emt 0:09:04]} 12. Be2 {[%emt 0:08:06]} exf4 {[%emt 0:14:48]} 13.
Nf3 {[%emt 0:10:38]} Ne5 {[%emt 0:08:25]} 14. O-O {[%emt 0:04:10]} Nxf3+ {
[%emt 0:06:17]} 15. Rxf3 {[%emt 0:06:49]} Be5 {[%emt 0:00:57]} 16. Qd2 {
[%emt 0:03:54]} g5 {[%emt 0:02:23]} 17. Raf1 {[%emt 0:05:11]} Rg8 {[%emt 0:00:
00]} 18. Kh1 {[%emt 0:02:30]} Qf6 {[%emt 0:06:53]} 19. g3 {[%emt 0:05:52]}
O-O-O {[%emt 0:10:12]} 20. Nb5 {[%emt 0:02:07]} Bxb5 {[%emt 0:02:19]} 21. Bxb5
{[%emt 0:00:01]} a6 {[%emt 0:07:05]} 22. Be2 {[%emt 0:01:28]} Qh6 {[%emt 0:00:
00]} 23. g4 {[%emt 0:01:18]} f5 {[%emt 0:02:34]} 24. exf5 {[%emt 0:02:49]} Rxd5
{[%emt 0:00:21]} 25. Qb4 {[%emt 0:04:45]} Rgd8 {[%emt 0:01:44]} 26. Bg1 {
[%emt 0:01:27]} Kb8 {[%emt 0:03:36]} 27. Rb3 {[%emt 0:01:17]} f3 {[%emt 0:00:
00]} 28. Bxf3 {[%emt 0:00:14]} Rd2 {[%emt 0:00:33]} 29. Bg2 {[%emt 0:00:15]}
Re2 {[%emt 0:06:15]} 30. Rh3 {[%emt 0:01:14]} Qf6 {[%emt 0:00:45]} 31. Re3 {
[%emt 0:00:51]} Rxb2 {[%emt 0:00:34]} 32. Qe4 {[%emt 0:00:15]} Rd5 {[%emt 0:00:
00]} 33. Rb1 {[%emt 0:01:28]} Rxb1 {[%emt 0:02:39]} 34. Qxb1 {[%emt 0:00:02]}
Rb5 {[%emt 0:00:13]} 35. Rb3 {[%emt 0:02:35]} Rxb3 {[%emt 0:01:06]} 36. Qxb3 {
[%emt 0:00:04]} Bd4 {[%emt 0:00:32]} 37. Qg8+ {[%emt 0:00:36]} Ka7 {[%emt 0:00:
00]} 38. Qxh7 {[%emt 0:00:35]} Bxg1 {[%emt 0:00:17]} 39. Qxc7 {[%emt 0:00:16]}
Nd5 {[%emt 0:01:07]} 40. Bxd5 {[%emt 0:00:12]} Qb6 {[%emt 0:00:14]} 41. Qxb6+ {
[%emt 0:32:09]} Bxb6 {[%emt 0:30:07]} 42. Kg2 {[%emt 0:00:37]} Bd4 {[%emt 0:00:
00]} 43. Kf3 {[%emt 0:00:32]} Kb6 {[%emt 0:00:48]} 44. Ke4 {[%emt 0:04:07]} Bf6
{[%emt 0:00:24]} 45. h4 {[%emt 0:00:10]} gxh4 {[%emt 0:00:16]} 46. Kf4 {
[%emt 0:00:06]} Kc7 {[%emt 0:01:01]} 47. g5 {[%emt 0:00:14]} Bd8 {[%emt 0:00:
00]} 48. f6 {[%emt 0:00:14]} Kd6 {[%emt 0:00:18]} 49. Bxb7 {[%emt 0:00:31]} Ke6
{[%emt 0:00:25]} 50. Bc8+ {[%emt 0:01:13]} Kd6 {[%emt 0:00:39]} 51. Kg4 {
[%emt 0:00:32]} Ke5 {[%emt 0:00:25]} 52. Bxa6 {[%emt 0:00:14]} h3 {[%emt 0:00:
00]} 53. Kxh3 {[%emt 0:00:15]} Kf5 {[%emt 0:00:20]} 54. Kh4 {[%emt 0:00:06]}
Kg6 {[%emt 0:00:13]} 55. Kg4 {[%emt 0:00:20]} Ba5 {[%emt 0:00:45]} 56. Bd3+ {
[%emt 0:00:14]} Kf7 {[%emt 0:00:05]} 57. Kf5 {[%emt 0:00:06]} Kg8 {[%emt 0:00:
00]} 58. g6 {[%emt 0:00:10]} Kh8 {[%emt 0:00:23]} 59. g7+ {[%emt 0:00:19]} Kh7
{[%emt 0:00:09]} 60. Kg5+ {[%emt 0:00:12]} Kg8 {[%emt 0:00:14]} 61. Bc4+ {
[%emt 0:00:06]} Kh7 {[%emt 0:00:13]} 62. g8=Q# {[%emt 0:00:15]} 1-0

[Event "44th Chess Olympiad Open 2022"]
[Site "Chennai"]
[Date "2022.08.03"]
[Round "6.65"]
[White "Gerena Rivas, Eliam"]
[Black "Lau, Lut Yin Luke"]
[Result "1-0"]
[WhiteElo "2102"]
[BlackElo "2027"]
[Annotator "NA RC"]
[PlyCount "147"]
[EventDate "2022.??.??"]
[TimeControl "60"]

1. e4 {[%emt 0:00:05]} e5 {[%emt 0:00:14]} 2. Nf3 {[%emt 0:00:15]} Nf6 {
[%emt 0:00:16]} 3. Nxe5 {[%emt 0:00:19]} d6 {[%emt 0:00:05]} 4. Nf3 {[%emt 0:
00:00]} Nxe4 {[%emt 0:00:05]} 5. Nc3 {[%emt 0:00:25]} Nf6 {[%emt 0:00:15]} 6.
d4 {[%emt 0:00:39]} Be7 {[%emt 0:00:15]} 7. Bd3 {[%emt 0:00:38]} O-O {[%emt 0:
00:00]} 8. h3 {[%emt 0:01:00]} b6 {[%emt 0:04:23]} 9. Ne2 {[%emt 0:01:34]} Bb7
{[%emt 0:01:26]} 10. Ng3 {[%emt 0:00:16]} c5 {[%emt 0:01:08]} 11. O-O {[%emt 0:
00:00]} g6 {[%emt 0:14:49]} 12. Re1 {[%emt 0:02:43]} Nc6 {[%emt 0:01:33]} 13.
Bg5 {[%emt 0:04:38]} Nd5 {[%emt 0:13:55]} 14. Rxe7 {[%emt 0:18:34]} Ncxe7 {
[%emt 0:09:20]} 15. c4 {[%emt 0:00:36]} f6 {[%emt 0:02:35]} 16. Bh6 {[%emt 0:
00:00]} Nb4 {[%emt 0:01:39]} 17. Bxf8 {[%emt 0:01:22]} Qxf8 {[%emt 0:00:27]}
18. d5 {[%emt 0:00:37]} Re8 {[%emt 0:23:11]} 19. Bb1 {[%emt 0:02:10]} f5 {
[%emt 0:06:05]} 20. a3 {[%emt 0:01:55]} Na6 {[%emt 0:00:23]} 21. Bc2 {[%emt 0:
00:00]} Nc7 {[%emt 0:00:43]} 22. Qd2 {[%emt 0:06:10]} Qf6 {[%emt 0:02:34]} 23.
Rb1 {[%emt 0:10:11]} Ba6 {[%emt 0:02:29]} 24. Bd3 {[%emt 0:03:56]} b5 {[%emt 0:
00:00]} 25. cxb5 {[%emt 0:06:15]} Bb7 {[%emt 0:04:39]} 26. Qa5 {[%emt 0:01:14]}
Ncxd5 {[%emt 0:01:06]} 27. Qxa7 {[%emt 0:00:18]} Ba8 {[%emt 0:00:22]} 28. Bc4 {
[%emt 0:01:48]} Kh8 {[%emt 0:01:25]} 29. b6 {[%emt 0:04:58]} Nc6 {[%emt 0:00:
00]} 30. Qa6 {[%emt 0:00:28]} Nb8 {[%emt 0:00:46]} 31. Qxa8 {[%emt 0:00:13]}
Nxb6 {[%emt 0:00:07]} 32. Qb7 {[%emt 0:08:24]} Nxc4 {[%emt 0:03:09]} 33. Qb5 {
[%emt 0:02:58]} Qf7 {[%emt 0:00:00]} 34. Ng5 {[%emt 0:01:56]} Qe7 {[%emt 0:00:
00]} 35. Qxc4 {[%emt 0:02:10]} Qxg5 {[%emt 0:00:00]} 36. Rd1 {[%emt 0:01:18]}
Qf6 {[%emt 0:00:32]} 37. b4 {[%emt 0:00:43]} cxb4 {[%emt 0:01:43]} 38. axb4 {
[%emt 0:00:12]} Nd7 {[%emt 0:00:28]} 39. Qc6 {[%emt 0:00:25]} Qe7 {[%emt 0:00:
00]} 40. Rxd6 {[%emt 0:01:02]} Ne5 {[%emt 0:00:27]} 41. Qd5 {[%emt 0:31:05]} f4
{[%emt 0:02:46]} 42. Ne4 {[%emt 0:00:00]} f3 {[%emt 0:09:37]} 43. Nf6 {[%emt 0:
00:00]} Rf8 {[%emt 0:10:06]} 44. Re6 {[%emt 0:00:00]} Qc7 {[%emt 0:00:28]} 45.
Qc5 {[%emt 0:00:00]} Qxc5 {[%emt 0:02:56]} 46. bxc5 {[%emt 0:00:00]} Nd3 {
[%emt 0:00:12]} 47. c6 {[%emt 0:00:00]} Nc5 {[%emt 0:01:42]} 48. Re8 {[%emt 0:
00:00]} Rxe8 {[%emt 0:02:23]} 49. Nxe8 {[%emt 0:00:07]} Na4 {[%emt 0:00:46]}
50. c7 {[%emt 0:00:15]} Nb6 {[%emt 0:00:04]} 51. Nd6 {[%emt 0:00:07]} fxg2 {
[%emt 0:00:16]} 52. c8=Q+ {[%emt 0:00:19]} Nxc8 {[%emt 0:00:06]} 53. Nxc8 {
[%emt 0:00:08]} Kg7 {[%emt 0:00:10]} 54. Kxg2 {[%emt 0:00:15]} Kf6 {[%emt 0:00:
00]} 55. Nd6 {[%emt 0:00:12]} Ke5 {[%emt 0:00:18]} 56. Nc4+ {[%emt 0:00:20]}
Kd5 {[%emt 0:00:12]} 57. Nd2 {[%emt 0:00:19]} Ke5 {[%emt 0:00:13]} 58. Kg3 {
[%emt 0:00:09]} h6 {[%emt 0:00:16]} 59. Kg4 {[%emt 0:00:43]} Kd5 {[%emt 0:00:
00]} 60. f4 {[%emt 0:00:34]} Ke6 {[%emt 0:00:44]} 61. Ne4 {[%emt 0:00:33]} Ke7
{[%emt 0:00:43]} 62. h4 {[%emt 0:00:30]} Ke6 {[%emt 0:00:07]} 63. Ng3 {[%emt 0:
00:00]} Kf6 {[%emt 0:00:12]} 64. h5 {[%emt 0:00:17]} g5 {[%emt 0:00:08]} 65.
Ne4+ {[%emt 0:00:25]} Ke6 {[%emt 0:00:08]} 66. Nxg5+ {[%emt 0:00:26]} hxg5 {
[%emt 0:00:08]} 67. fxg5 {[%emt 0:00:10]} Kf7 {[%emt 0:00:03]} 68. Kf5 {
[%emt 0:00:10]} Kg7 {[%emt 0:00:03]} 69. h6+ {[%emt 0:00:15]} Kh7 {[%emt 0:00:
00]} 70. Kf6 {[%emt 0:00:17]} Kh8 {[%emt 0:00:08]} 71. g6 {[%emt 0:00:18]} Kg8
{[%emt 0:00:02]} 72. h7+ {[%emt 0:00:12]} Kh8 {[%emt 0:00:06]} 73. g7+ {
[%emt 0:00:06]} Kxh7 {[%emt 0:00:04]} 74. Kf7 {[%emt 0:00:05]} 1-0

[Event "44th Chess Olympiad Open 2022"]
[Site "Chennai"]
[Date "2022.08.03"]
[Round "6.65"]
[White "Deng, Yu Dong Michael"]
[Black "Rodriguez Santiago, Jaime"]
[Result "1/2-1/2"]
[WhiteElo "2028"]
[BlackElo "2067"]
[Annotator "NA RC"]
[PlyCount "82"]
[EventDate "2022.??.??"]
[TimeControl "60"]

1. d4 {[%emt 0:00:04]} d5 {[%emt 0:00:05]} 2. c4 {[%emt 0:00:04]} c6 {[%emt 0:
00:00]} 3. Nf3 {[%emt 0:00:09]} Nf6 {[%emt 0:00:05]} 4. Nc3 {[%emt 0:00:04]} e6
{[%emt 0:00:04]} 5. e3 {[%emt 0:00:55]} Nbd7 {[%emt 0:00:15]} 6. Bd3 {[%emt 0:
00:00]} dxc4 {[%emt 0:00:15]} 7. Bxc4 {[%emt 0:00:02]} b5 {[%emt 0:00:09]} 8.
Bd3 {[%emt 0:00:01]} Bb7 {[%emt 0:00:07]} 9. e4 {[%emt 0:04:26]} a6 {[%emt 0:
00:00]} 10. O-O {[%emt 0:07:49]} Be7 {[%emt 0:02:13]} 11. e5 {[%emt 0:03:42]}
Nd5 {[%emt 0:02:18]} 12. Nxd5 {[%emt 0:01:52]} cxd5 {[%emt 0:00:13]} 13. Be3 {
[%emt 0:03:18]} O-O {[%emt 0:04:12]} 14. Nd2 {[%emt 0:10:30]} g6 {[%emt 0:00:
00]} 15. Bh6 {[%emt 0:04:40]} Re8 {[%emt 0:00:30]} 16. f4 {[%emt 0:00:20]} Qb6
{[%emt 0:02:19]} 17. Nf3 {[%emt 0:00:38]} Nb8 {[%emt 0:01:12]} 18. g4 {[%emt 0:
00:00]} Nc6 {[%emt 0:00:37]} 19. Bc2 {[%emt 0:03:28]} Nxd4 {[%emt 0:00:36]} 20.
Nxd4 {[%emt 0:02:23]} Bc5 {[%emt 0:00:07]} 21. Kg2 {[%emt 0:05:22]} Bxd4 {
[%emt 0:02:21]} 22. Rb1 {[%emt 0:01:35]} Be3 {[%emt 0:00:52]} 23. Qf3 {[%emt 0:
00:00]} Rac8 {[%emt 0:01:20]} 24. Bd3 {[%emt 0:01:06]} d4 {[%emt 0:00:33]} 25.
Be4 {[%emt 0:00:05]} Bxe4 {[%emt 0:00:06]} 26. Qxe4 {[%emt 0:00:03]} Qc6 {
[%emt 0:00:05]} 27. Qxc6 {[%emt 0:05:32]} Rxc6 {[%emt 0:00:01]} 28. h4 {
[%emt 0:00:48]} f6 {[%emt 0:02:01]} 29. exf6 {[%emt 0:01:21]} Kf7 {[%emt 0:00:
00]} 30. Bg5 {[%emt 0:02:09]} h6 {[%emt 0:01:26]} 31. Bxh6 {[%emt 0:02:48]} e5
{[%emt 0:00:04]} 32. Bg5 {[%emt 0:06:21]} e4 {[%emt 0:03:29]} 33. f5 {[%emt 0:
00:00]} Bxg5 {[%emt 0:08:06]} 34. hxg5 {[%emt 0:00:27]} gxf5 {[%emt 0:03:02]}
35. Rxf5 {[%emt 0:03:42]} d3 {[%emt 0:14:39]} 36. Rh1 {[%emt 0:07:57]} Rc2+ {
[%emt 0:05:32]} 37. Kg3 {[%emt 0:01:37]} d2 {[%emt 0:00:41]} 38. Rd5 {[%emt 0:
00:00]} e3 {[%emt 0:01:50]} 39. Rh7+ {[%emt 0:01:37]} Ke6 {[%emt 0:00:28]} 40.
Rhd7 {[%emt 0:01:02]} e2 {[%emt 0:05:22]} 41. R5d6+ {[%emt 0:30:38]} Ke5 {
[%emt 0:00:11]} 1/2-1/2

[Event "44th Chess Olympiad Open 2022"]
[Site "Chennai"]
[Date "2022.08.03"]
[Round "6.65"]
[White "Kannappan, Thanneermalai"]
[Black "Zilleruelo Irizarry, Diego"]
[Result "0-1"]
[WhiteElo "1699"]
[BlackElo "2081"]
[Annotator "NA RC"]
[PlyCount "118"]
[EventDate "2022.??.??"]
[TimeControl "60"]

1. e4 {[%emt 0:00:09]} c6 {[%emt 0:00:01]} 2. d4 {[%emt 0:00:28]} d5 {[%emt 0:
00:00]} 3. exd5 {[%emt 0:00:26]} cxd5 {[%emt 0:00:02]} 4. c4 {[%emt 0:00:29]}
Nf6 {[%emt 0:00:05]} 5. Nc3 {[%emt 0:00:21]} g6 {[%emt 0:00:37]} 6. Qb3 {
[%emt 0:00:33]} Bg7 {[%emt 0:00:32]} 7. cxd5 {[%emt 0:00:12]} O-O {[%emt 0:00:
00]} 8. Be2 {[%emt 0:00:25]} Na6 {[%emt 0:02:09]} 9. Bxa6 {[%emt 0:08:45]} bxa6
{[%emt 0:01:10]} 10. Nge2 {[%emt 0:00:48]} Nd7 {[%emt 0:02:21]} 11. Bf4 {
[%emt 0:07:50]} Nb6 {[%emt 0:02:54]} 12. Be5 {[%emt 0:10:23]} Bb7 {[%emt 0:00:
00]} 13. Nf4 {[%emt 0:09:12]} Qd7 {[%emt 0:22:49]} 14. Bxg7 {[%emt 0:02:49]}
Kxg7 {[%emt 0:00:02]} 15. O-O {[%emt 0:05:03]} Qf5 {[%emt 0:10:01]} 16. Nfe2 {
[%emt 0:05:36]} Rab8 {[%emt 0:02:24]} 17. Ng3 {[%emt 0:03:36]} Qd7 {[%emt 0:00:
00]} 18. Nge4 {[%emt 0:04:16]} Bxd5 {[%emt 0:07:34]} 19. Nxd5 {[%emt 0:01:24]}
Nxd5 {[%emt 0:00:22]} 20. Qa3 {[%emt 0:01:45]} Nb4 {[%emt 0:08:18]} 21. Rad1 {
[%emt 0:07:37]} Qd5 {[%emt 0:03:51]} 22. Nc3 {[%emt 0:05:26]} Qc4 {[%emt 0:00:
00]} 23. Qa5 {[%emt 0:05:28]} Nc6 {[%emt 0:01:43]} 24. Qa3 {[%emt 0:05:21]}
Rfd8 {[%emt 0:03:12]} 25. d5 {[%emt 0:02:29]} Nb4 {[%emt 0:00:03]} 26. Qa5 {
[%emt 0:00:51]} Nc2 {[%emt 0:06:55]} 27. b3 {[%emt 0:01:55]} Qb4 {[%emt 0:00:
00]} 28. Qxb4 {[%emt 0:00:33]} Nxb4 {[%emt 0:00:04]} 29. Rfe1 {[%emt 0:03:19]}
Rbc8 {[%emt 0:01:41]} 30. Re3 {[%emt 0:03:27]} Nxd5 {[%emt 0:03:39]} 31. Red3 {
[%emt 0:00:14]} e6 {[%emt 0:00:01]} 32. f3 {[%emt 0:01:01]} Rc5 {[%emt 0:01:40]
} 33. Kf2 {[%emt 0:00:43]} Nxc3 {[%emt 0:00:52]} 34. Rxc3 {[%emt 0:00:35]} Rxc3
{[%emt 0:02:19]} 35. Rxd8 {[%emt 0:00:04]} Rc2+ {[%emt 0:00:04]} 36. Kg3 {
[%emt 0:00:09]} Rxa2 {[%emt 0:00:13]} 37. Rd7 {[%emt 0:00:31]} g5 {[%emt 0:00:
00]} 38. Rxa7 {[%emt 0:00:30]} h5 {[%emt 0:00:20]} 39. h4 {[%emt 0:01:42]}
gxh4+ {[%emt 0:01:20]} 40. Kxh4 {[%emt 0:00:10]} Kg6 {[%emt 0:01:42]} 41. Ra8 {
[%emt 0:33:25]} Kf5 {[%emt 0:31:22]} 42. Kg3 {[%emt 0:00:00]} e5 {[%emt 0:00:
00]} 43. Rh8 {[%emt 0:00:00]} Rb2 {[%emt 0:00:00]} 44. Ra8 {[%emt 0:00:00]} Ra2
{[%emt 0:00:00]} 45. Rh8 {[%emt 0:00:00]} Ra3 {[%emt 0:00:00]} 46. Ra8 {
[%emt 0:00:00]} Ra1 {[%emt 0:00:00]} 47. Rh8 {[%emt 0:00:00]} Rh1 {[%emt 0:00:
00]} 48. Kf2 {[%emt 0:00:00]} h4 {[%emt 0:00:00]} 49. Ke3 {[%emt 0:00:00]} Rb1
{[%emt 0:00:00]} 50. Rb8 {[%emt 0:00:00]} Rb2 {[%emt 0:00:00]} 51. Rb4 {
[%emt 0:00:00]} a5 {[%emt 0:00:00]} 52. Rb5 {[%emt 0:00:00]} Rxg2 {[%emt 0:00:
00]} 53. Rxa5 {[%emt 0:00:00]} Rg8 {[%emt 0:00:00]} 54. Ra1 {[%emt 0:00:00]}
Rb8 {[%emt 0:00:00]} 55. Rb1 {[%emt 0:00:00]} Rb4 {[%emt 0:00:00]} 56. Rb2 {
[%emt 0:00:00]} h3 {[%emt 0:00:00]} 57. Rb1 {[%emt 0:00:00]} h2 {[%emt 0:00:00]
} 58. Kf2 {[%emt 0:00:00]} Rxb3 {[%emt 0:00:00]} 59. Rh1 {[%emt 0:00:36]} Kf4 {
[%emt 0:00:00]} 0-1

[Event "44th Chess Olympiad Open 2022"]
[Site "Chennai"]
[Date "2022.08.03"]
[Round "6.66"]
[White "Ursus van Bemmelen"]
[Black "Salim Issa, Ali Shamas"]
[Result "1/2-1/2"]
[WhiteElo "2145"]
[BlackElo "1851"]
[Annotator "NA RC"]
[PlyCount "61"]
[EventDate "2022.??.??"]
[TimeControl "60"]

1. d4 {[%emt 0:00:08]} Nf6 {[%emt 0:00:24]} 2. Nf3 {[%emt 0:00:15]} e6 {
[%emt 0:00:21]} 3. c4 {[%emt 0:00:18]} d5 {[%emt 0:00:16]} 4. Bg5 {[%emt 0:00:
00]} Be7 {[%emt 0:00:17]} 5. e3 {[%emt 0:00:14]} c6 {[%emt 0:00:20]} 6. Nc3 {
[%emt 0:00:20]} Nbd7 {[%emt 0:00:15]} 7. Bd3 {[%emt 0:00:14]} O-O {[%emt 0:00:
00]} 8. O-O {[%emt 0:00:09]} b6 {[%emt 0:00:29]} 9. Rc1 {[%emt 0:05:41]} Bb7 {
[%emt 0:00:16]} 10. Qe2 {[%emt 0:01:35]} Re8 {[%emt 0:01:04]} 11. Rfd1 {
[%emt 0:00:13]} a6 {[%emt 0:01:16]} 12. h3 {[%emt 0:05:22]} h6 {[%emt 0:00:13]}
13. Bf4 {[%emt 0:00:36]} dxc4 {[%emt 0:03:16]} 14. Bxc4 {[%emt 0:00:14]} Nd5 {
[%emt 0:00:12]} 15. Bg3 {[%emt 0:01:42]} Nf8 {[%emt 0:00:56]} 16. e4 {[%emt 0:
00:00]} Nf6 {[%emt 0:02:20]} 17. Ne5 {[%emt 0:16:07]} b5 {[%emt 0:05:35]} 18.
Bb3 {[%emt 0:00:59]} Qb6 {[%emt 0:00:20]} 19. d5 {[%emt 0:02:34]} exd5 {
[%emt 0:01:17]} 20. exd5 {[%emt 0:03:10]} cxd5 {[%emt 0:00:13]} 21. Nxd5 {
[%emt 0:09:24]} Nxd5 {[%emt 0:06:00]} 22. Bxd5 {[%emt 0:00:03]} Bxd5 {[%emt 0:
00:00]} 23. Rxd5 {[%emt 0:00:02]} Bf6 {[%emt 0:00:18]} 24. Qd3 {[%emt 0:05:58]}
Re6 {[%emt 0:02:57]} 25. Nd7 {[%emt 0:16:52]} Nxd7 {[%emt 0:00:18]} 26. Rxd7 {
[%emt 0:00:02]} Rae8 {[%emt 0:08:17]} 27. Rcc7 {[%emt 0:06:51]} Rf8 {[%emt 0:
00:00]} 28. Qd2 {[%emt 0:06:45]} Be5 {[%emt 0:02:20]} 29. Bxe5 {[%emt 0:00:37]}
Rxe5 {[%emt 0:00:14]} 30. Re7 {[%emt 0:06:34]} Rxe7 {[%emt 0:01:07]} 31. Rxe7 {
[%emt 0:00:02]} 1/2-1/2